bitfinex/quotes_SOLUSD_20250822
["timestamp","ask_amount","ask_price","bid_price","bid_amount"]
[1755848783869,30.78783522,184.03,184.02,13.59559401]
[1755848785005,26.0,184.05,184.02,13.59559401]
[1755848785173,26.0,184.03,184.02,13.59559401]
[1755848785599,4.78783522,184.04,184.02,13.59559401]
[1755848785897,4.78783522,184.07,184.04,13.59559401]
[1755848786095,0.72,184.1,184.05,0.66]
[1755848786295,26.0,184.07,184.06,14.25559401]
[1755848786464,6.21133676,184.12,184.06,14.25559401]
[1755848786668,4.78783522,184.1,184.06,14.25559401]
[1755848786972,26.0,184.09,184.08,13.59559401]
[1755848787178,26.0,184.09,184.08,0.66]
[1755848788878,4.78783522,184.1,184.08,0.66]
[1755848789881,0.06,184.12,184.1,13.59559401]
[1755848790097,0.06,184.12,184.11,14.53991715]
[1755848790603,0.06,184.12,184.11,13.87991715]
[1755848791299,0.06,184.12,184.11,14.53991715]
[1755848791598,0.06,184.12,184.11,19.32775237]
[1755848791795,0.06,184.12,184.11,24.75928786]
[1755848793099,0.06,184.12,184.11,104.55928786]
[1755848796688,0.06,184.12,184.11,146.71928786]
[1755848798113,0.06,184.13,184.12,99.05115764]
[1755848798302,0.06,184.13,184.12,104.49899286]
[1755848799712,0.06,184.13,184.12,99.06775237]
[1755848799885,0.06,184.13,184.12,94.27991715]
[1755848800518,0.06,184.13,184.12,104.49899286]
[1755848802299,0.06,184.13,184.12,94.27991715]
[1755848802696,0.06,184.13,184.12,99.71115764]
[1755848804017,0.06,184.13,184.12,94.27991715]
[1755848804511,0.06,184.13,184.12,99.71115764]
[1755848805020,0.06,184.13,184.12,104.49899286]
[1755848805316,0.06,184.13,184.12,99.06775237]
[1755848805811,0.06,184.13,184.12,104.49899286]
[1755848806987,0.06,184.15,184.14,93.21559401]
[1755848807215,0.06,184.15,184.14,140.36775237]
[1755848807520,0.06,184.15,184.14,141.04775237]
[1755848808198,0.06,184.15,184.14,146.47840296]
[1755848811314,0.06,184.15,184.14,145.79840296]
[1755848812824,0.06,184.15,184.14,151.12029015]
[1755848813428,0.06,184.15,184.14,146.33245493]
[1755848813934,0.06,184.15,184.14,147.01245493]
[1755848814132,0.06,184.15,184.14,151.80029015]
[1755848815923,0.06,184.16,184.15,93.43991715]
[1755848816124,0.06,184.16,184.15,103.65810805]
[1755848818423,0.75,184.16,184.15,93.43991715]
[1755848818604,0.06,184.16,184.15,93.43991715]
[1755848820223,0.06,184.16,184.15,103.65810805]
[1755848821101,0.06,184.16,184.15,104.33810805]
[1755848822033,0.06,184.18,184.16,13.87991715]
[1755848822237,0.06,184.18,184.17,60.68775237]
[1755848822404,0.06,184.18,184.17,66.11751834]
[1755848822600,0.06,184.18,184.17,66.79751834]
[1755848825944,0.06,184.19,184.18,66.19991715]
[1755848826128,0.06,184.19,184.18,285.22775237]
[1755848826634,0.06,184.19,184.18,289.68409268]
[1755848826815,1e-08,184.19,184.18,295.11356384]
[1755848827329,0.75,184.26,184.23,13.87991715]
[1755848827527,0.75,184.26,184.23,140.14775236]
[1755848829225,0.75,184.26,184.23,145.57574997]
[1755848832816,0.75,184.24,184.23,140.14775236]
[1755848833012,0.75,184.24,184.23,135.055594]
[1755848833418,0.75,184.24,184.23,135.33991714]
[1755848833633,5.53783522,184.24,184.23,135.33991714]
[1755848835437,0.75,184.24,184.23,135.33991714]
[1755848835642,5.53783522,184.24,184.23,135.33991714]
[1755848836948,0.75,184.24,184.23,135.33991714]
[1755848837944,0.06,184.24,184.23,140.76791475]
[1755848839548,0.73,184.24,184.23,140.76791475]
[1755848841127,0.06,184.24,184.23,140.76791475]
[1755848846662,0.06,184.24,184.23,141.45791475]
[1755848847044,0.06,184.24,184.23,146.24574997]
[1755848851367,0.06,184.24,184.23,280.24574997]
[1755848852159,0.06,184.24,184.23,279.55574997]
[1755848853358,0.06,184.24,184.23,280.24574997]
[1755848854355,0.06,184.24,184.23,279.55574997]
[1755848855080,0.06,184.24,184.23,280.24574997]
[1755848856554,0.06,184.24,184.23,274.76791475]
[1755848856760,0.06,184.24,184.23,279.55574997]
[1755848861283,0.06,184.24,184.23,284.98971695]
[1755848862587,0.06,184.24,184.23,285.67971695]
[1755848863874,0.06,184.26,184.24,0.28432314]
[1755848864088,0.06,184.26,184.25,66.76516078]
[1755848864666,0.06,184.26,184.25,61.97732556]
[1755848864880,0.06,184.26,184.25,66.07516078]
[1755848865786,0.73,184.26,184.25,24.09516078]
[1755848865977,0.73,184.26,184.25,61.28732556]
[1755848866288,5.51783522,184.26,184.25,13.73775558]
[1755848866586,0.73,184.26,184.25,55.57559401]
[1755848866783,5.51783522,184.26,184.25,55.85991715]
[1755848866983,0.73,184.26,184.25,55.85991715]
[1755848867187,0.06,184.26,184.25,61.28732556]
[1755848868991,0.06,184.26,184.25,140.72732555]
[1755848869874,0.72,184.26,184.25,140.72732555]
[1755848872301,0.06,184.26,184.25,140.72732555]
[1755848877378,0.72,184.26,184.25,140.72732555]
[1755848878594,0.72,184.26,184.25,140.72732555]
[1755848879376,0.72,184.26,184.25,135.29991714]
[1755848879685,3.77962107,184.26,184.25,135.015594]
[1755848880087,3.77962107,184.26,184.25,135.29991714]
[1755848880492,0.72,184.26,184.25,135.29991714]
[1755848880700,3.77962107,184.26,184.25,135.29991714]
[1755848881200,3.77962107,184.26,184.25,55.57559401]
[1755848881695,3.77962107,184.26,184.25,55.85991715]
[1755848881887,3.77962107,184.26,184.25,55.71775558]
[1755848882394,3.77962107,184.26,184.25,55.85991715]
[1755848883190,3.77962107,184.26,184.25,55.57559401]
[1755848883493,32.14711386,184.26,184.25,55.57559401]
[1755848883700,29.77962107,184.26,184.25,55.57559401]
[1755848884006,3.77962107,184.26,184.25,55.57559401]
[1755848884211,0.72,184.26,184.25,55.85991715]
[1755848884411,0.06,184.26,184.25,55.85991715]
[1755848884782,0.72,184.26,184.25,13.87991715]
[1755848884982,0.72,184.26,184.25,55.85991715]
[1755848885603,3.77962107,184.26,184.25,55.85991715]
[1755848886006,0.72,184.26,184.25,55.85991715]
[1755848886516,0.06,184.26,184.25,55.85991715]
[1755848886715,0.06,184.26,184.25,61.28732556]
[1755848886932,3.77962107,184.26,184.25,13.87991715]
[1755848887218,3.77962107,184.26,184.25,55.57559401]
[1755848890516,5.50366549,184.26,184.25,55.57559401]
[1755848894630,4.84366549,184.26,184.25,55.85991715]
[1755848894808,4.84366549,184.26,184.25,56.52991715]
[1755848895133,4.84366549,184.26,184.25,55.85991715]
[1755848895425,5.50366549,184.26,184.25,55.85991715]
[1755848895642,0.06,184.26,184.25,55.85991715]
[1755848895927,4.84366549,184.26,184.25,55.85991715]
[1755848896300,5.50366549,184.26,184.25,55.85991715]
[1755848897221,4.84366549,184.26,184.25,55.85991715]
[1755848897634,5.53366549,184.26,184.25,55.85991715]
[1755848897798,0.75,184.26,184.25,55.85991715]
[1755848898000,4.84366549,184.26,184.25,55.85991715]
[1755848899735,5.53366549,184.26,184.25,55.85991715]
[1755848899939,0.06,184.26,184.25,56.53991715]
[1755848900103,4.84366549,184.26,184.25,55.85991715]
[1755848900321,4.84366549,184.26,184.25,56.53991715]
[1755848900730,4.84366549,184.26,184.25,61.96732556]
[1755848901465,4.84366549,184.26,184.25,56.53991715]
[1755848901669,4.84366549,184.26,184.25,61.96732556]
[1755848901955,0.06,184.26,184.25,61.96732556]
[1755848903349,0.06,184.26,184.25,55.85991715]
[1755848903536,0.06,184.26,184.25,61.28732556]
[1755848903736,0.06,184.26,184.25,61.96732556]
[1755848904565,0.06,184.26,184.25,141.40732555]
[1755848908473,0.06,184.26,184.25,135.29991714]
[1755848908766,4.84366549,184.26,184.25,135.29991714]
[1755848911157,0.06,184.26,184.25,140.72732555]
[1755848911743,0.06,184.26,184.25,141.40732555]
[1755848911953,0.06,184.26,184.25,140.72732555]
[1755848912245,0.06,184.26,184.25,135.97991714]
[1755848912447,2.67960629,184.28,184.26,13.87991715]
[1755848912774,3.36960629,184.28,184.27,55.85991715]
[1755848914454,2.67960629,184.28,184.27,55.85991715]
[1755848914784,3.11960629,184.29,184.27,55.85991715]
[1755848915071,3.11960629,184.29,184.28,13.59559401]
[1755848916443,3.11960629,184.29,184.28,93.035594]
[1755848916842,3.80960629,184.29,184.28,93.035594]
[1755848917978,3.11960629,184.29,184.28,93.035594]
[1755848918294,0.06,184.29,184.28,93.035594]
[1755848918466,3.11960629,184.29,184.28,98.74644199]
[1755848919678,0.06,184.29,184.28,98.74644199]
[1755848920165,3.11960629,184.29,184.28,98.74644199]
[1755848921789,0.06,184.29,184.28,98.74644199]
[1755848921990,3.11960629,184.29,184.28,98.74644199]
[1755848922693,3.11960629,184.29,184.28,93.31991714]
[1755848924364,3.80960629,184.29,184.28,93.31991714]
[1755848924687,0.75,184.29,184.28,93.31991714]
[1755848924876,3.80960629,184.29,184.28,93.31991714]
[1755848925790,3.11960629,184.29,184.28,93.31991714]
[1755848927900,0.06,184.29,184.28,93.31991714]
[1755848928288,3.11960629,184.29,184.28,93.31991714]
[1755848929190,0.06,184.29,184.28,93.31991714]
[1755848929378,0.06,184.29,184.28,99.43644199]
[1755848931970,3.11960629,184.29,184.28,93.31991714]
[1755848932282,3.79960629,184.29,184.28,134.995594]
[1755848934187,9.22583668,184.29,184.28,134.995594]
[1755848934390,3.79960629,184.29,184.28,134.995594]
[1755848934576,3.79960629,184.29,184.28,55.55559401]
[1755848934771,3.79960629,184.29,184.28,55.83991715]
[1755848934984,3.79960629,184.29,184.28,55.55559401]
[1755848935786,9.22583668,184.29,184.28,55.55559401]
[1755848935985,9.22583668,184.29,184.25,0.03]
[1755848936190,3.05960629,184.26,184.25,0.03]
[1755848936400,3.05960629,184.26,184.25,55.58559401]
[1755848936826,3.73960629,184.26,184.25,55.58559401]
[1755848937718,9.16672015,184.26,184.25,55.58559401]
[1755848940322,3.73960629,184.26,184.25,55.58559401]
[1755848941499,0.68,184.26,184.25,55.58559401]
[1755848941813,26.0,184.28,184.26,13.59559401]
[1755848942112,26.0,184.28,184.27,41.96]
[1755848942512,26.68,184.28,184.27,41.96]
[1755848943011,29.05960629,184.28,184.27,41.96]
[1755848943911,29.73960629,184.28,184.27,41.96]
[1755848944694,9.16613114,184.28,184.27,41.96]
[1755848945007,3.73960629,184.28,184.27,41.96]
[1755848946122,29.73960629,184.28,184.27,41.96]
[1755848946425,29.05960629,184.28,184.27,41.96]
[1755848948113,3.11960629,184.28,184.27,41.96]
[1755848948502,3.11960629,184.28,184.27,56.52991715]
[1755848948991,0.06,184.28,184.27,135.96991714]
[1755848949214,0.06,184.28,184.27,56.52991715]
[1755848949401,0.06,184.28,184.27,61.95673649]
[1755848949802,0.06,184.28,184.27,56.52991715]
[1755848954809,0.06,184.28,184.27,135.96991714]
[1755848955616,0.06,184.28,184.27,141.39673648]
[1755848955832,0.06,184.28,184.27,135.96991714]
[1755848956505,0.06,184.28,184.27,141.39673648]
[1755848958031,0.06,184.28,184.27,135.96991714]
[1755848958435,0.06,184.28,184.27,94.00991714]
[1755848958607,0.06,184.28,184.27,135.96991714]
[1755848959632,0.06,184.28,184.27,135.27991714]
[1755848960134,0.06,184.28,184.27,135.97991714]
[1755848960833,0.06,184.28,184.27,141.40673648]
[1755848962938,0.06,184.28,184.27,135.97991714]
[1755848964941,0.06,184.28,184.27,136.00991714]
[1755848967342,0.06,184.28,184.27,141.43673648]
[1755848968721,0.06,184.28,184.27,135.30991714]
[1755848972328,0.06,184.28,184.27,136.00991714]
[1755848973248,0.06,184.28,184.27,141.43673648]
[1755848975548,0.06,184.28,184.27,144.49566733]
[1755848976336,0.06,184.28,184.27,149.79478144]
[1755848976541,0.06,184.28,184.27,146.03585059]
[1755848976863,0.06,184.28,184.27,149.79478144]
[1755848978442,0.06,184.28,184.27,146.73585059]
[1755848978767,0.06,184.28,184.27,149.79478144]
[1755848980052,0.06,184.28,184.27,146.73585059]
[1755848980645,0.06,184.28,184.27,149.79478144]
[1755848982459,0.06,184.28,184.27,146.73585059]
[1755848982669,0.06,184.28,184.27,149.79478144]
[1755848983946,0.06,184.28,184.27,146.73585059]
[1755848984144,0.06,184.28,184.27,149.79478144]
[1755848984542,0.06,184.28,184.27,146.73585059]
[1755848984754,0.06,184.28,184.27,146.03585059]
[1755848985357,0.06,184.28,184.27,146.73585059]
[1755848985561,0.06,184.28,184.27,146.03585059]
[1755848986765,0.06,184.28,184.27,146.73585059]
[1755848986958,0.06,184.28,184.27,149.79478144]
[1755848987444,0.06,184.29,184.28,93.25991714]
[1755848987644,0.06,184.29,184.28,97.00884799]
[1755848989256,0.06,184.29,184.28,102.43537284]
[1755848992368,0.06,184.29,184.28,23.05537285]
[1755848993369,0.06,184.29,184.28,102.85537285]
[1755848994268,0.06,184.29,184.28,102.16537285]
[1755848994658,0.06,184.29,184.28,102.85537285]
[1755848995076,0.06,184.29,184.28,23.05537285]
[1755848996571,0.06,184.29,184.28,22.36537285]
[1755848998557,0.06,184.29,184.28,23.05537285]
[1755848998781,0.06,184.29,184.28,22.36537285]
[1755848999289,0.06,184.29,184.28,144.08537285]
[1755849000158,0.06,184.29,184.28,144.77537285]
[1755849000971,0.06,184.3,184.29,13.87991715]
[1755849001274,0.06,184.3,184.29,17.628848]
[1755849002264,0.06,184.3,184.29,23.05507839]
[1755849002770,0.06,184.3,184.29,19.30614754]
[1755849002967,0.73,184.3,184.29,61.20614754]
[1755849003971,0.06,184.3,184.29,61.20614754]
[1755849004274,0.73,184.3,184.29,61.20614754]
[1755849004884,0.73,184.3,184.29,13.59559401]
[1755849005086,0.73,184.3,184.27,0.03]
[1755849005087,3.78893085,184.3,184.27,0.03]
[1755849005421,0.73,184.3,184.28,41.9]
[1755849005561,0.67,184.29,184.28,41.9]
[1755849005964,0.67,184.29,184.28,55.49559401]
[1755849006277,0.67,184.29,184.28,55.77991715]
[1755849006472,5.45173546,184.29,184.28,55.77991715]
[1755849008361,0.67,184.29,184.28,55.77991715]
[1755849008557,0.06,184.3,184.29,13.87991715]
[1755849008762,0.73,184.3,184.29,13.87991715]
[1755849010386,0.06,184.3,184.29,19.30614754]
[1755849010601,0.73,184.3,184.29,19.30614754]
[1755849010802,0.06,184.3,184.29,19.30614754]
[1755849011594,0.06,184.3,184.29,19.99614754]
[1755849012476,0.06,184.3,184.29,24.777883]
[1755849012679,0.06,184.3,184.29,19.99614754]
[1755849012974,0.06,184.3,184.29,24.777883]
[1755849013795,0.06,184.3,184.29,19.99614754]
[1755849013968,0.06,184.3,184.29,24.777883]
[1755849014293,0.06,184.31,184.3,93.61991715]
[1755849014502,0.06,184.31,184.3,135.51991715]
[1755849014662,0.06,184.31,184.3,141.63585312]
[1755849015092,0.06,184.31,184.3,140.94585312]
[1755849016071,0.06,184.31,184.3,145.72758858]
[1755849016388,0.06,184.31,184.3,146.41758858]
[1755849017094,0.73,184.31,184.3,140.94585312]
[1755849017602,0.06,184.31,184.3,140.94585312]
[1755849017976,0.06,184.31,184.3,145.72758858]
[1755849022187,0.06,184.31,184.3,146.40758858]
[1755849023014,0.06,184.32,184.31,93.55991715]
[1755849023174,0.06,184.32,184.31,98.34165261]
[1755849023376,0.06,184.32,184.31,98.98555873]
[1755849023677,0.06,184.32,184.31,103.76729419]
[1755849024220,0.06,184.32,184.31,98.98555873]
[1755849024378,0.06,184.32,184.31,103.76729419]
[1755849024577,0.06,184.32,184.31,104.44729419]
[1755849024975,0.06,184.33,184.32,13.87991715]
[1755849025181,0.06,184.33,184.32,140.92165261]
[1755849026891,0.06,184.33,184.32,146.34699983]
[1755849029910,0.06,184.33,184.32,141.56526437]
[1755849030111,0.06,184.33,184.32,146.34699983]
[1755849030783,0.1,184.34,184.32,146.34699983]
[1755849030979,0.1,184.34,184.33,45.34165261]
[1755849031392,0.79,184.37,184.36,93.25991715]
[1755849031590,0.79,184.37,184.36,135.13991715]
[1755849032911,0.79,184.37,184.36,140.56408725]
[1755849036288,0.1,184.37,184.36,140.56408725]
[1755849036504,0.79,184.37,184.36,140.56408725]
[1755849038816,0.79,184.37,184.36,135.13991715]
[1755849039718,0.79,184.37,184.36,140.56408725]
[1755849040015,0.79,184.37,184.36,135.13991715]
[1755849041317,0.79,184.37,184.36,140.56408725]
[1755849042394,0.1,184.37,184.36,140.56408725]
[1755849042698,0.1,184.37,184.36,135.13991715]
[1755849042938,0.79,184.37,184.36,135.13991715]
[1755849043805,0.79,184.37,184.36,93.25991715]
[1755849044015,0.79,184.37,184.36,135.13991715]
[1755849045221,0.1,184.37,184.36,135.13991715]
[1755849045822,3.84595048,184.37,184.36,13.59559401]
[1755849045999,3.84595048,184.37,184.36,55.47559401]
[1755849046309,3.84595048,184.37,184.36,55.61775558]
[1755849046516,3.84595048,184.37,184.36,55.75991715]
[1755849047229,9.26982638,184.37,184.36,13.87991715]
[1755849047532,9.26982638,184.37,184.36,55.59775558]
[1755849047901,9.26982638,184.37,184.36,55.73991715]
[1755849048103,9.26982638,184.37,184.36,55.45559401]
[1755849049909,9.26982638,184.37,184.34,0.03]
[1755849050111,3.05595048,184.35,184.34,0.03]
[1755849050318,3.05595048,184.35,184.34,55.48559401]
[1755849050631,3.71595048,184.35,184.34,55.48559401]
[1755849051324,9.14041481,184.35,184.34,55.48559401]
[1755849052034,9.14041481,184.35,184.34,13.62559401]
[1755849052420,10.86461594,184.35,184.34,13.62559401]
[1755849052736,15.64476755,184.35,184.34,0.03]
[1755849052940,10.86461594,184.35,184.34,0.03]
[1755849060418,0.76,184.37,184.34,13.62559401]
[1755849060624,0.1,184.37,184.36,13.59559401]
[1755849060941,10.30406328,184.37,184.36,13.59559401]
[1755849061323,10.96406328,184.37,184.36,13.59559401]
[1755849064426,10.96406328,184.37,184.34,0.03]
[1755849064641,4.78015161,184.35,184.34,41.91]
[1755849064842,5.44015161,184.35,184.34,41.91]
[1755849066418,10.86461594,184.35,184.34,41.91]
[1755849067863,6.08446433,184.35,184.34,55.50559401]
[1755849068022,10.20461594,184.35,184.34,55.50559401]
[1755849068222,4.78015161,184.35,184.34,55.50559401]
[1755849068444,4.78015161,184.35,184.34,56.21559401]
[1755849068629,4.78015161,184.35,184.34,55.50559401]
[1755849070228,10.20461594,184.35,184.34,55.50559401]
[1755849070650,10.86461594,184.35,184.34,55.50559401]
[1755849071060,10.20461594,184.35,184.34,55.50559401]
[1755849071657,10.86461594,184.35,184.34,55.50559401]
[1755849072034,10.86461594,184.35,184.34,2023.29529401]
[1755849072828,10.86461594,184.35,184.34,3991.08499401]
[1755849074251,6.08446433,184.35,184.34,3991.08499401]
[1755849074447,10.86461594,184.35,184.34,3991.08499401]
[1755849075350,4.78015161,184.35,184.34,3991.08499401]
[1755849075542,4.78015161,184.35,184.34,3991.79499401]
[1755849075860,4.78015161,184.35,184.34,3991.08499401]
[1755849076354,10.20461594,184.35,184.34,3991.08499401]
[1755849076552,10.86461594,184.35,184.34,3991.08499401]
[1755849080375,10.20461594,184.35,184.34,3991.08499401]
[1755849080733,5.42419114,184.36,184.34,3991.08499401]
[1755849081069,5.42419114,184.36,184.35,13.59559401]
[1755849082168,10.92434275,184.36,184.35,13.59559401]
[1755849083567,10.20434275,184.36,184.35,13.59559401]
[1755849084238,5.42419114,184.36,184.35,13.59559401]
[1755849084644,10.20434275,184.36,184.35,13.59559401]
[1755849086371,10.92434275,184.36,184.35,13.59559401]
[1755849086749,6.14419114,184.36,184.35,13.59559401]
[1755849086948,10.92434275,184.36,184.35,13.59559401]
[1755849087272,10.92434275,184.36,184.34,3977.4894]
[1755849087452,5.50015161,184.35,184.34,3991.08499401]
[1755849088079,4.78015161,184.35,184.34,3991.08499401]
[1755849088279,10.20461594,184.35,184.34,3991.06499401]
[1755849090384,8.48261857,184.35,184.34,3991.06499401]
[1755849092583,3.75527526,184.37,184.35,13.59559401]
[1755849092763,3.15815424,184.37,184.36,55.45559401]
[1755849092958,0.1,184.37,184.36,56.14559401]
[1755849093778,0.1,184.37,184.36,55.45559401]
[1755849096983,0.1,184.37,184.36,56.42991715]
[1755849098565,0.1,184.37,184.36,61.20638235]
[1755849105783,0.1,184.37,184.36,141.00638235]
[1755849108489,0.1,184.37,184.36,140.98638235]
[1755849111986,0.1,184.37,184.36,135.51991715]
[1755849112189,0.1,184.37,184.36,141.00638235]
[1755849113689,0.8,184.37,184.36,140.29638235]
[1755849113890,0.1,184.37,184.36,140.29638235]
[1755849114291,0.1,184.37,184.36,141.00638235]
[1755849116373,0.1,184.37,184.36,139.28544054]
[1755849117093,0.1,184.37,184.36,138.57544054]
[1755849117988,0.1,184.37,184.36,139.28544054]
[1755849119597,0.1,184.37,184.36,139.26544054]
[1755849119973,0.1,184.37,184.36,138.55544054]
[1755849120177,0.1,184.37,184.36,139.26544054]
[1755849120481,0.1,184.37,184.36,138.55544054]
[1755849122905,0.1,184.37,184.36,135.49991715]
[1755849123279,0.1,184.37,184.36,138.55544054]
[1755849123484,0.1,184.37,184.36,139.26544054]
[1755849124083,0.1,184.37,184.36,136.20991715]
[1755849124285,0.1,184.37,184.36,144.68961064]
[1755849125807,0.06,184.39,184.37,13.87991715]
[1755849125985,0.06,184.39,184.38,58.75544054]
[1755849126299,0.06,184.39,184.38,59.46544054]
[1755849127216,0.06,184.39,184.38,64.88902227]
[1755849128006,0.06,184.39,184.38,144.68902227]
[1755849128306,0.06,184.39,184.38,170.68902227]
[1755849130813,0.06,184.39,184.38,127.87469913]
[1755849131007,0.06,184.39,184.38,169.69469913]
[1755849131208,0.06,184.39,184.38,170.68902227]
[1755849132410,0.06,184.41,184.4,93.61991715]
[1755849132724,0.06,184.41,184.4,138.49544054]
[1755849133797,0.06,184.41,184.4,144.62843403]
[1755849136919,0.06,184.41,184.4,138.49544054]
[1755849137319,0.06,184.41,184.4,144.63843403]
[1755849137508,0.06,184.41,184.4,143.91843403]
[1755849137711,0.77,184.41,184.4,93.33559401]
[1755849137912,0.77,184.41,184.4,138.1911174]
[1755849138118,0.77,184.41,184.4,96.67544054]
[1755849138428,0.77,184.41,184.4,138.47544054]
[1755849138622,0.06,184.41,184.4,138.47544054]
[1755849138831,0.06,184.41,184.4,93.61991715]
[1755849139036,0.77,184.41,184.4,93.33559401]
[1755849139339,0.77,184.41,184.4,135.41991715]
[1755849140401,0.06,184.41,184.4,140.19334809]
[1755849140815,0.06,184.41,184.4,140.91334809]
[1755849141012,0.77,184.41,184.4,140.19334809]
[1755849141412,0.77,184.41,184.4,135.41991715]
[1755849142035,0.77,184.41,184.4,13.87991715]
[1755849142332,0.77,184.41,184.4,60.45334809]
[1755849142506,0.06,184.41,184.4,60.45334809]
[1755849142828,0.06,184.41,184.4,61.17334809]
[1755849143726,0.06,184.41,184.4,66.59634158]
[1755849144532,0.06,184.41,184.4,71.36977252]
[1755849144706,0.06,184.41,184.4,66.59634158]
[1755849145104,0.06,184.45,184.41,13.87991715]
[1755849145326,0.06,184.45,184.44,18.65334809]
[1755849145631,0.06,184.45,184.44,55.71991715]
[1755849145807,0.77,184.45,184.44,60.49334809]
[1755849146014,0.77,184.45,184.44,55.71991715]
[1755849146209,0.06,184.45,184.44,55.71991715]
[1755849146409,5.54343094,184.45,184.44,13.73775558]
[1755849146727,5.54343094,184.45,184.44,55.65559401]
[1755849147526,6.19152344,184.45,184.44,13.59559401]
[1755849147843,5.54343094,184.45,184.44,55.69559401]
[1755849148139,0.77,184.45,184.44,55.97991715]
[1755849148349,0.06,184.45,184.44,60.75334809]
[1755849148634,0.06,184.45,184.44,61.47334809]
[1755849148821,0.06,184.45,184.44,66.89516548]
[1755849149017,0.06,184.45,184.44,19.37334809]
[1755849149242,0.06,184.45,184.44,60.81334809]
[1755849149732,0.77,184.45,184.44,56.03991715]
[1755849150617,0.77,184.45,184.44,55.75559401]
[1755849150817,5.54343094,184.45,184.44,55.89775558]
[1755849151330,5.54343094,184.45,184.44,56.03991715]
[1755849151627,0.77,184.45,184.44,56.03991715]
[1755849152013,5.54343094,184.45,184.44,56.03991715]
[1755849152919,0.77,184.45,184.44,56.03991715]
[1755849153237,10.96495438,184.45,184.44,55.75559401]
[1755849153548,10.96495438,184.45,184.44,55.77559401]
[1755849154035,6.19152344,184.45,184.44,55.77559401]
[1755849154219,10.96495438,184.45,184.44,55.77559401]
[1755849155641,5.54343094,184.45,184.44,55.77559401]
[1755849155842,0.77,184.45,184.44,56.05991715]
[1755849156137,4.83343094,184.45,184.44,56.05991715]
[1755849156442,0.06,184.45,184.44,56.05991715]
[1755849157018,5.54343094,184.45,184.44,56.05991715]
[1755849157513,10.96495438,184.45,184.44,56.05991715]
[1755849157717,10.96495438,184.45,184.44,13.87991715]
[1755849157935,10.96495438,184.45,184.44,56.03991715]
[1755849159133,5.54343094,184.45,184.44,56.03991715]
[1755849159644,4.83343094,184.45,184.44,56.03991715]
[1755849160141,5.54343094,184.45,184.44,56.03991715]
[1755849161236,0.06,184.45,184.44,56.03991715]
[1755849161419,0.06,184.45,184.44,141.33334809]
[1755849162327,0.06,184.45,184.44,136.55991715]
[1755849162529,0.06,184.45,184.44,141.33334809]
[1755849162838,0.06,184.45,184.44,146.75516548]
[1755849167844,0.1,184.47,184.45,93.61991715]
[1755849168036,0.1,184.47,184.46,55.99991715]
[1755849170251,0.78,184.47,184.46,13.59559401]
[1755849170425,0.78,184.47,184.46,55.71559401]
[1755849171150,0.78,184.47,184.46,55.99991715]
[1755849171351,5.55343094,184.47,184.46,55.71559401]
[1755849171928,5.55343094,184.47,184.46,55.85775558]
[1755849172250,5.55343094,184.47,184.46,60.04441339]
[1755849174457,10.97436659,184.47,184.46,59.76009025]
[1755849174758,5.55343094,184.47,184.46,59.76009025]
[1755849175357,10.97436659,184.47,184.46,59.76009025]
[1755849176062,10.97436659,184.47,184.46,55.71559401]
[1755849176446,6.20093565,184.47,184.46,55.71559401]
[1755849176634,10.97436659,184.47,184.46,55.71559401]
[1755849180162,10.97436659,184.47,184.46,13.59559401]
[1755849180360,10.97436659,184.47,184.46,55.67559401]
[1755849181063,26.0,184.44,184.41,0.03]
[1755849181246,4.77343094,184.42,184.41,0.03]
[1755849181448,4.77343094,184.42,184.41,42.11]
[1755849181664,5.45343094,184.42,184.41,42.11]
[1755849183465,10.87583631,184.42,184.41,42.11]
[1755849184858,6.10240537,184.42,184.41,42.11]
[1755849185058,10.87583631,184.42,184.41,42.11]
[1755849186249,6.10240537,184.42,184.41,42.11]
[1755849186454,10.87583631,184.42,184.41,42.11]
[1755849187266,10.87583631,184.42,184.41,0.03]